bitfinex-derivatives/quotes_ETHF0:USTF0_20250322
["timestamp","ask_amount","ask_price","bid_price","bid_amount"]
[1742673124033,2.96061,1994.8,1994.7,2.40063]
[1742673124335,2.96061,1994.8,1994.7,1.3978]
[1742673124529,2.96061,1994.8,1994.7,2.40063]
[1742673126833,0.00751785,1995.1,1995.0,1.00268]
[1742673127028,0.00751785,1995.1,1995.0,4.21048]
[1742673127228,0.00751785,1995.1,1995.0,5.52398]
[1742673127432,0.00751785,1995.1,1995.0,8.02398]
[1742673127837,0.00751785,1995.1,1995.0,5.52398]
[1742673129336,1.01014785,1995.1,1995.0,5.52398]
[1742673129640,0.00751785,1995.1,1995.0,5.52398]
[1742673129840,1.40741785,1995.1,1995.0,5.52398]
[1742673134435,2.41004785,1995.1,1995.0,5.52398]
[1742673134946,3.06254785,1995.1,1995.0,5.52398]
[1742673137649,3.06254785,1995.1,1995.0,4.5213]
[1742673139352,3.06254785,1995.1,1995.0,5.52398]
[1742673141450,3.06254785,1995.1,1995.0,2.31618]
[1742673144657,2.41004785,1995.1,1995.0,2.31618]
[1742673150551,2.41004785,1995.1,1995.0,5.52398]
[1742673151551,0.00751785,1995.1,1995.0,5.52398]
[1742673152147,4.17545,1995.5,1995.4,1.00243]
[1742673152341,1.00245,1995.5,1995.4,4.21023]
[1742673152751,1.00245,1995.5,1995.4,5.59443]
[1742673152752,2.34565,1995.5,1995.4,5.59443]
[1742673160557,1.00992785,1995.6,1995.5,1.00243]
[1742673160852,1.00992785,1995.6,1995.5,2.31183]
[1742673160853,2.28162785,1995.6,1995.5,2.31183]
[1742673167666,1.27921785,1995.6,1995.5,2.31183]
[1742673169266,2.28159785,1995.6,1995.5,2.31183]
[1742673171861,1.27921785,1995.6,1995.5,2.31183]
[1742673172062,2.28159785,1995.6,1995.5,2.31183]
[1742673172767,1.27921785,1995.6,1995.5,2.31183]
[1742673173657,1.27921785,1995.6,1995.5,5.51963]
[1742673175170,2.28159785,1995.6,1995.5,5.51963]
[1742673175768,1.27921785,1995.6,1995.5,5.51963]
[1742673177467,0.00751785,1995.6,1995.5,5.51963]
[1742673180684,1.34321785,1995.6,1995.5,5.51963]
[1742673182674,2.01431785,1995.6,1995.5,5.51963]
[1742673184978,2.66891785,1995.6,1995.5,5.51963]
[1742673185275,2.01431785,1995.6,1995.5,5.51963]
[1742673193581,0.00751785,1995.6,1995.5,5.51963]
[1742673195483,1.32581785,1995.6,1995.5,5.51963]
[1742673197186,1.32581785,1995.6,1995.5,2.31183]
[1742673197381,1.32581785,1995.6,1995.5,5.51963]
[1742673200086,1.32581785,1995.6,1995.5,2.31183]
[1742673200285,1.32581785,1995.6,1995.5,5.51963]
[1742673200486,0.00751785,1995.6,1995.5,5.51963]
[1742673200785,0.00751785,1995.6,1995.5,8.68263]
[1742673211505,0.00751785,1995.6,1995.5,4.21023]
[1742673211708,0.00751785,1995.6,1995.3,4.21780785]
[1742673211908,1.00248,1995.4,1995.3,3.21531785]
[1742673212112,1.00248,1995.4,1995.3,0.00751785]
[1742673212803,1.69378,1995.4,1995.3,0.00751785]
[1742673213110,1.69378,1995.4,1995.3,1.01004785]
[1742673213602,1.69378,1995.4,1995.3,4.21784785]
[1742673213808,0.6913,1995.4,1995.3,4.21784785]
[1742673214510,1.9683,1995.4,1995.3,4.21784785]
[1742673215810,2.97078,1995.4,1995.3,4.21784785]
[1742673216007,1.9683,1995.4,1995.3,4.21784785]
[1742673216905,2.97078,1995.4,1995.3,3.21531785]
[1742673218308,2.97078,1995.4,1995.3,4.53921785]
[1742673218504,2.97078,1995.4,1995.3,5.54174785]
[1742673218706,2.97078,1995.4,1995.3,0.00751785]
[1742673222905,2.97078,1995.4,1995.3,1.01004785]
[1742673223215,2.97078,1995.4,1995.3,2.37264785]
[1742673224314,2.97078,1995.4,1995.3,1.3626]
[1742673224914,1.00253,1995.3,1995.2,1.00256]
[1742673225113,3.05723,1995.3,1995.2,2.38596]
[1742673226818,3.05723,1995.3,1995.2,1.3834]
[1742673245431,1.00253,1995.3,1995.2,4.5912]
[1742673245935,1.3237,1995.4,1995.2,4.5912]
[1742673246134,4.16344,1995.5,1995.3,1.9724]
[1742673246336,5.48714,1995.5,1995.4,6.18713]
[1742673248334,2.32614,1995.5,1995.4,6.18713]
[1742673249733,0.00751785,1995.6,1995.5,1.00243]
[1742673249937,0.00751785,1995.6,1995.5,2.27233]
[1742673249938,1.30601785,1995.6,1995.5,2.27233]
[1742673250139,0.00751785,1995.6,1995.5,2.27233]
[1742673251934,2.30839785,1995.6,1995.5,2.27233]
[1742673255540,2.30839785,1995.6,1995.5,5.48013]
[1742673256746,1.30601785,1995.6,1995.5,5.48013]
[1742673257436,0.00751785,1995.6,1995.5,5.48013]
[1742673259143,0.00751785,1995.6,1995.5,8.64013]
[1742673265848,2.39478,1996.0,1995.9,1.00223]
[1742673266045,1.3926,1996.0,1995.9,1.00223]
[1742673266544,1.3926,1996.0,1995.9,3.00553]
[1742673268348,2.39478,1996.0,1995.9,3.00553]
[1742673268543,1.3926,1996.0,1995.9,3.00553]
[1742673269645,1.3926,1996.0,1995.9,2.35403]
[1742673276572,2.39478,1996.0,1995.9,2.35403]
[1742673276775,3.04118,1996.0,1995.9,2.35403]
[1742673277072,2.039,1996.0,1995.9,2.35403]
[1742673277274,3.04118,1996.0,1995.9,2.35403]
[1742673277768,2.039,1996.0,1995.9,2.35403]
[1742673278569,1.3926,1996.0,1995.9,2.35403]
[1742673286572,2.39478,1996.0,1995.9,2.35403]
[1742673292376,2.39478,1996.0,1995.9,1.00223]
[1742673292579,1.00223,1995.9,1995.8,5.52607785]
[1742673292773,2.92773,1995.9,1995.8,5.52607785]
[1742673293485,1.9255,1995.9,1995.8,5.52607785]
[1742673293985,2.92773,1995.9,1995.8,5.52607785]
[1742673295079,2.92773,1995.9,1995.8,2.31827785]
[1742673295879,2.92773,1995.9,1995.8,2.98387785]
[1742673296580,1.9255,1995.9,1995.8,2.98387785]
[1742673299382,2.92773,1995.9,1995.8,2.31827785]
[1742673305083,2.92773,1995.9,1995.8,1.31601785]
[1742673309085,2.92773,1995.9,1995.8,2.31829785]
[1742673309286,3.84391785,1996.1,1996.0,1.00218]
[1742673309487,4.84604785,1996.1,1996.0,3.2078]
[1742673309984,4.84604785,1996.1,1996.0,4.4814]
[1742673311397,4.84604785,1996.1,1996.0,5.48358]
[1742673312484,4.84604785,1996.1,1996.0,2.27578]
[1742673314095,4.84604785,1996.1,1996.0,1.2736]
[1742673314297,5.50484785,1996.1,1996.0,1.2736]
[1742673317201,5.50484785,1996.1,1995.8,3.85401785]
[1742673317202,1.00223,1995.9,1995.8,3.85401785]
[1742673317397,1.00223,1995.9,1995.8,3.21531785]
[1742673317598,4.16123,1995.9,1995.8,0.00751785]
[1742673317801,1.00238,1995.6,1995.5,0.6447]
[1742673318601,1.3029,1995.6,1995.5,2.96593]
[1742673319205,4.16135,1995.7,1995.6,1.00238]
[1742673319409,4.16135,1995.7,1995.6,2.32118]
[1742673319905,4.16135,1995.7,1995.6,5.52898]
[1742673321100,5.50795,1995.7,1995.6,5.52898]
[1742673326308,4.16232,1995.8,1995.7,1.00233]
[1742673326509,4.16232,1995.8,1995.7,2.34493]
[1742673327611,4.16232,1995.8,1995.7,1.3426]
[1742673327910,4.16232,1995.8,1995.7,2.34493]
[1742673330819,4.84552,1996.0,1995.9,1.00223]
[1742673331113,6.13828,1996.0,1995.9,1.00223]
[1742673331307,5.45498,1996.0,1995.9,1.00223]
[1742673331502,5.45498,1996.0,1995.9,3.02593]
[1742673332914,2.29498,1996.0,1995.9,3.02593]
[1742673340519,2.29498,1996.0,1995.9,2.32443]
[1742673340717,2.29498,1996.0,1995.9,1.3222]
[1742673340916,2.29498,1996.0,1995.9,2.32443]
[1742673341114,2.29498,1996.0,1995.9,1.3222]
[1742673343422,1.00223,1995.9,1995.8,3.2078]
[1742673343619,1.00233,1995.7,1995.6,4.87158]
[1742673343828,1.279,1995.9,1995.8,1.00228]
[1742673344026,1.279,1995.9,1995.8,4.21008]
[1742673344326,4.16221,1996.0,1995.9,1.00223]
[1742673344623,5.51831,1996.0,1995.9,3.62973]
[1742673347125,2.35831,1996.0,1995.9,3.62973]
[1742673347529,2.35831,1996.0,1995.9,2.6275]
[1742673348227,2.35831,1996.0,1995.9,3.62973]
[1742673349616,2.35831,1996.0,1995.9,1.3237]
[1742673350732,1.00223,1995.9,1995.8,3.2078]
[1742673351027,3.68163,1995.9,1995.8,4.5637]
[1742673354328,3.68163,1995.9,1995.8,1.3559]
[1742673354531,3.68163,1995.9,1995.8,4.5637]
[1742673360939,3.68163,1995.9,1995.8,1.3559]
[1742673361239,3.68163,1995.9,1995.8,4.5637]
[1742673365844,3.68163,1995.9,1995.8,1.3559]
[1742673366141,3.68163,1995.9,1995.8,4.5637]
[1742673366437,3.68163,1995.9,1995.8,1.3559]
[1742673366940,4.51089693,1995.9,1995.8,1.3559]
[1742673367238,5.42006727,1995.9,1995.8,1.3559]
[1742673368331,3.68163,1995.9,1995.8,1.3559]
[1742673375150,1.00233,1995.7,1995.6,3.2078]
[1742673375446,7.82156362,1995.8,1995.4,3.2078]
[1742673375636,1.00258,1995.2,1995.1,4.21039]
[1742673377450,2.50573,1995.8,1995.3,2.50633]
[1742673377649,1.00243,1995.5,1995.4,6.14102]
[1742673378348,1.00239,1995.6,1995.5,1.00238]
[1742673378556,3.161,1995.7,1995.6,1.00238]
[1742673378557,1.00236,1995.7,1995.6,1.00238]
[1742673378848,1.00236,1995.7,1995.6,4.89718]
[1742673379147,1.00236,1995.7,1995.6,6.25278]
[1742673380642,4.16433,1995.8,1995.7,1.00233]
[1742673380849,4.16433,1995.8,1995.7,2.35793]
[1742673387160,0.00751785,1996.1,1995.8,2.50569]
[1742673387345,1.00218,1996.0,1995.9,2.97288]
[1742673387653,5.48088785,1996.1,1996.0,1.00218]
[1742673387855,5.48088785,1996.1,1996.0,2.30398]
[1742673388354,5.48088785,1996.1,1996.0,1.3018]
[1742673394952,4.47871785,1996.1,1996.0,5.51178]
[1742673395161,4.17164785,1996.1,1996.0,5.51178]
[1742673395360,5.52344785,1996.1,1996.0,5.51178]
[1742673395654,2.36144785,1996.1,1996.0,5.51178]
[1742673400673,2.36144785,1996.1,1996.0,2.30398]
[1742673409675,2.36144785,1996.1,1996.0,1.3018]
[1742673409970,2.36144785,1996.1,1996.0,2.30398]
[1742673410366,2.36144785,1996.1,1996.0,1.3018]
[1742673411578,2.36144785,1996.1,1996.0,2.30398]
[1742673415472,2.36144785,1996.1,1996.0,5.51178]
[1742673417475,2.36144785,1996.1,1996.0,2.30398]
[1742673417676,2.36144785,1996.1,1996.0,5.51178]
[1742673418471,2.36144785,1996.1,1996.0,2.30398]
[1742673418869,2.36144785,1996.1,1996.0,5.51178]
[1742673420885,2.36144785,1996.1,1996.0,1.3018]
[1742673430392,5.52044785,1996.1,1996.0,1.3018]
[1742673436094,1.00223,1995.9,1995.8,1.3536]
[1742673437499,2.33153,1995.9,1995.8,2.7308]
[1742673439000,2.33153,1995.9,1995.8,3.73308]
[1742673441691,2.33153,1995.9,1995.8,2.7308]
[1742673441899,2.33153,1995.9,1995.8,2.0673]
[1742673443308,2.33153,1995.9,1995.8,5.2751]
[1742673445214,2.33153,1995.9,1995.8,2.0673]
[1742673445516,2.33153,1995.9,1995.8,3.06958]
[1742673450119,1.00223,1995.9,1995.8,3.06958]
[1742673451621,2.39342,1996.0,1995.9,1.00223]
[1742673451916,2.39342,1996.0,1995.9,2.27783]
[1742673453423,2.39342,1996.0,1995.9,1.2756]
[1742673453623,2.39342,1996.0,1995.9,2.27783]
[1742673454030,2.39342,1996.0,1995.9,1.2756]
[1742673456930,2.39342,1996.0,1995.9,2.27783]
[1742673458631,2.39342,1996.0,1995.9,1.2756]
[1742673459030,2.39342,1996.0,1995.9,2.27783]
[1742673460331,0.00751785,1996.1,1996.0,1.00218]
[1742673460526,0.00751785,1996.1,1996.0,2.35568]
[1742673460928,0.00751785,1996.1,1996.0,5.56348]
[1742673461328,1.00964785,1996.1,1996.0,5.56348]
[1742673462046,2.29164785,1996.1,1996.0,5.56348]
[1742673469240,1.28951785,1996.1,1996.0,5.56348]
[1742673469738,2.29164785,1996.1,1996.0,5.56348]
[1742673477446,1.28951785,1996.1,1996.0,5.56348]
[1742673478038,2.29164785,1996.1,1996.0,5.56348]
[1742673480239,2.29164785,1996.1,1996.0,2.35568]
[1742673480444,2.29164785,1996.1,1996.0,5.56348]
[1742673483542,1.28951785,1996.1,1996.0,5.56348]
[1742673483844,2.29164785,1996.1,1996.0,5.56348]
[1742673484157,1.28951785,1996.1,1996.0,5.56348]
[1742673484447,2.29164785,1996.1,1996.0,5.56348]
[1742673485048,1.28951785,1996.1,1996.0,5.56348]
[1742673485247,0.00751785,1996.1,1996.0,5.56348]
[1742673490341,0.6352,1996.5,1996.4,1.00198]
[1742673490745,1.0016,1997.2,1996.8,1.00178]
[1742673490948,1.3449,1996.9,1996.8,4.20958]
[1742673491246,2.34663,1996.9,1996.8,4.20958]
[1742673491451,1.3449,1996.9,1996.8,4.20958]
[1742673491645,3.67303,1996.9,1996.8,5.59098]
[1742673494755,1.981,1996.9,1996.8,5.59098]
[1742673495758,2.98273,1996.9,1996.8,5.59098]
[1742673496257,2.98273,1996.9,1996.8,4.5892]
[1742673496556,2.98273,1996.9,1996.8,5.59098]
[1742673499359,2.98273,1996.9,1996.8,2.38318]
[1742673501655,1.981,1996.9,1996.8,2.38318]
[1742673505760,2.98273,1996.9,1996.8,2.38318]
[1742673508855,1.3264,1996.9,1996.8,2.38318]
[1742673509368,1.00920785,1997.0,1996.9,1.00173]
[1742673509574,2.27490785,1997.0,1996.9,2.99313]
[1742673511272,2.27490785,1997.0,1996.9,6.20093]
[1742673511471,2.27490785,1997.0,1996.9,1.3399]
[1742673511670,2.96610785,1997.0,1996.9,1.3399]
[1742673519775,6.12310785,1997.0,1996.9,1.3399]
[1742673525784,7.03179634,1997.0,1996.9,1.3399]
[1742673526783,6.12310785,1997.0,1996.9,1.3399]
[1742673527377,5.43190785,1997.0,1996.9,1.3399]
[1742673527580,5.43190785,1997.0,1996.9,1.9726]
[1742673528179,3.16451785,1997.0,1996.9,6.18213]
[1742673528385,4.16619785,1997.0,1996.9,6.18213]
[1742673528978,4.16619785,1997.0,1996.9,5.1804]
[1742673529288,5.47949785,1997.0,1996.9,5.1804]
[1742673529788,2.32249785,1997.0,1996.9,5.1804]
[1742673537195,2.32249785,1997.0,1996.9,1.9726]
[1742673538192,2.32249785,1997.0,1996.9,2.97433]
[1742673538392,2.32249785,1997.0,1996.9,1.9726]
[1742673540589,2.32249785,1997.0,1996.9,2.97433]
[1742673540795,2.32249785,1997.0,1996.9,1.9726]
[1742673544194,2.32249785,1997.0,1996.9,2.97433]
[1742673547290,0.00751785,1997.0,1996.9,2.97433]
[1742673547700,1.30971785,1997.0,1996.9,2.97433]
[1742673549799,0.00751785,1997.0,1996.9,2.97433]
[1742673550301,1.39791785,1997.0,1996.9,2.97433]
[1742673551488,1.39791785,1997.0,1996.9,6.18213]
[1742673551702,2.39959785,1997.0,1996.9,4.5477]
[1742673552199,3.04799785,1997.0,1996.9,4.5477]
[1742673553304,3.04799785,1997.0,1996.9,5.54943]
[1742673555403,3.04799785,1997.0,1996.9,2.34163]
[1742673555603,2.39959785,1997.0,1996.9,2.34163]
[1742673557404,1.39791785,1997.0,1996.9,2.34163]
[1742673557699,2.39959785,1997.0,1996.9,2.34163]
[1742673567708,2.39959785,1997.0,1996.9,1.3399]
[1742673567906,3.06379785,1997.0,1996.9,1.3399]
[1742673570009,3.06379785,1997.0,1996.9,2.34163]
[1742673570709,2.39959785,1997.0,1996.9,2.34163]
[1742673575110,2.39959785,1997.0,1996.9,1.3399]
[1742673576305,2.39959785,1997.0,1996.9,2.34163]
[1742673586012,2.39959785,1997.0,1996.9,1.3399]
[1742673586422,3.09759785,1997.0,1996.9,1.3399]
[1742673593514,4.00838166,1997.0,1996.9,1.3399]
[1742673601323,1.00178,1996.8,1996.7,1.00930785]
[1742673602430,1.00178,1996.8,1996.7,0.00751785]
[1742673602620,1.66318,1996.8,1996.7,1.40521785]
[1742673602822,2.34918,1996.8,1996.7,1.40521785]
[1742673603934,7.78587447,1996.8,1996.7,0.00751785]
[1742673604120,4.57807447,1996.8,1996.7,0.00751785]
[1742673604324,3.74808,1996.8,1996.7,0.00751785]
[1742673604731,5.48713593,1996.8,1996.7,0.00751785]
[1742673605233,7.8653913,1996.8,1996.7,0.00751785]
[1742673606035,6.1776113,1996.8,1996.7,0.00751785]
[1742673606233,6.5179913,1996.8,1996.7,1.00934785]
[1742673606435,3.2078,1996.8,1996.7,2.35914785]
[1742673606733,1.00177,1996.9,1996.8,1.00178]
[1742673606929,1.00177,1996.9,1996.8,2.38688]
[1742673607536,1.00177,1996.9,1996.8,3.01928]
[1742673607729,0.00751785,1997.0,1996.9,1.00173]
[1742673608032,1.00919785,1997.0,1996.9,3.03703]
[1742673609733,1.00919785,1997.0,1996.9,2.0353]
[1742673610028,2.36939785,1997.0,1996.9,2.0353]
[1742673611334,2.36939785,1997.0,1996.9,3.03703]
[1742673611936,2.36939785,1997.0,1996.9,2.0353]
[1742673613331,2.36939785,1997.0,1996.9,3.03703]
[1742673614436,0.00751785,1997.0,1996.9,3.03703]
[1742673614634,0.00751785,1997.0,1996.9,6.24483]
[1742673615343,0.00751785,1997.0,1996.9,9.40083]
[1742673615540,4.98672379,1997.3,1997.2,1.00158]
[1742673615742,5.06683428,1997.3,1997.2,1.00158]
[1742673615943,3.31113428,1997.3,1997.2,1.00158]
[1742673616141,2.40186,1997.3,1997.2,1.00158]
[1742673617044,2.40186,1997.3,1997.2,2.98658]
[1742673618845,2.40186,1997.3,1997.2,3.66198]
[1742673619140,1.58959213,1997.4,1997.3,1.00153]
[1742673619141,0.91679213,1997.4,1997.3,1.00153]
[1742673619445,0.00751785,1997.4,1997.3,8.75093]
[1742673625144,1.4035,1997.9,1997.8,1.00128]
[1742673625649,2.40473,1997.9,1997.8,1.00128]
[1742673625846,1.4035,1997.9,1997.8,2.37188]
[1742673626053,2.40473,1997.9,1997.8,1.3706]
[1742673626548,2.40473,1997.9,1997.8,2.37188]
[1742673626740,1.4035,1997.9,1997.8,2.37188]
[1742673626940,2.40473,1997.9,1997.8,2.37188]
[1742673627651,2.40473,1997.9,1997.8,1.3706]
[1742673627949,2.40473,1997.9,1997.8,2.37188]
[1742673628149,2.40473,1997.9,1997.8,1.3706]
[1742673628351,1.00128,1997.8,1997.7,3.2078]
[1742673628557,2.29288,1997.8,1997.7,4.5748]
[1742673628744,2.29288,1997.8,1997.7,1.367]
[1742673634555,2.29288,1997.8,1997.7,2.36833]
[1742673635657,2.98038,1997.8,1997.7,2.36833]
[1742673637856,1.9791,1997.8,1997.7,4.5748]
[1742673638050,2.98038,1997.8,1997.7,5.57613]
[1742673641156,2.98038,1997.8,1997.7,4.5748]
[1742673641353,2.98038,1997.8,1997.7,3.2078]
[1742673641555,2.98038,1997.8,1997.7,4.5831]
[1742673642459,2.98038,1997.8,1997.7,5.58443]
[1742673643159,1.2916,1997.8,1997.7,5.58443]
[1742673643361,1.70793785,1998.0,1997.9,1.00123]
[1742673643557,3.04443785,1998.0,1997.9,1.00123]
[1742673643762,1.00123,1997.9,1997.8,3.71645785]
[1742673643953,2.33773,1997.9,1997.8,2.35655785]
[1742673645555,1.3365,1997.9,1997.8,2.35655785]
[1742673645759,0.00751785,1998.0,1997.9,1.00123]
[1742673645959,0.00751785,1998.0,1997.9,4.20903]
[1742673646359,1.32531785,1998.0,1997.9,4.20903]
[1742673648267,0.00751785,1998.0,1997.9,4.20903]
[1742673648853,0.00751785,1998.0,1997.9,7.36303]
[1742673654773,0.00751785,1998.0,1997.9,8.67233]
[1742673662873,6.3618,1998.7,1998.4,1.00096]
[1742673663073,1.00094,1998.5,1998.4,1.00096]
[1742673663975,3.85201785,1998.6,1998.2,8.06144]
[1742673664177,1.00103,1998.3,1998.2,4.15504]
[1742673664378,1.00103,1998.3,1998.2,5.42054]
[1742673664689,2.30673,1998.3,1998.2,5.42054]
[1742673665275,1.3057,1998.3,1998.2,5.42054]
[1742673665979,1.3057,1998.3,1998.2,4.15504]
[1742673667372,1.00113,1998.1,1998.0,3.2078]
[1742673667777,1.00113,1998.1,1998.0,2.155]
[1742673668176,4.15513,1998.1,1998.0,2.155]
[1742673668578,5.53083,1998.1,1998.0,2.155]
[1742673668781,6.43805942,1998.1,1998.0,2.155]
[1742673668977,7.26549206,1998.1,1998.0,2.155]
[1742673669181,1.00123,1997.9,1997.8,3.21531785]
[1742673669874,2.37693,1997.9,1997.8,3.21531785]
[1742673670474,2.37693,1997.9,1997.8,0.00751785]
[1742673671082,3.02313,1997.9,1997.8,0.00751785]
[1742673671273,7.05870784,1997.9,1997.8,0.00751785]
[1742673671984,7.96621356,1997.9,1997.8,0.00751785]
[1742673672385,11.12021356,1997.9,1997.8,0.00751785]
[1742673674888,10.29243572,1997.9,1997.8,0.00751785]
[1742673675087,9.38493,1997.9,1997.8,0.00751785]
[1742673680278,1.00151,1997.4,1997.3,1.0015]
[1742673680684,1.00151,1997.4,1997.3,2.3315]
[1742673681880,1.00151,1997.4,1997.3,1.33]
[1742673682687,1.00153,1997.3,1997.2,0.00751785]
[1742673682991,1.64993,1997.3,1997.2,1.38231785]
[1742673684384,2.31433,1997.3,1997.2,1.38231785]
[1742673684886,3.66483,1997.3,1997.2,1.38231785]
[1742673687596,1.3505,1997.3,1997.2,1.38231785]
[1742673687893,0.00751785,1997.5,1997.4,1.00148]
[1742673688091,0.00751785,1997.5,1997.4,4.20928]
[1742673690689,0.00751785,1997.5,1997.4,7.37528]
[1742673695692,1.3348,1997.8,1997.7,1.00133]
[1742673696287,1.3348,1997.8,1997.7,2.33213]
[1742673709905,1.3348,1997.8,1997.7,5.53993]
[1742673710111,0.00751785,1997.9,1997.8,1.00128]
[1742673710312,1.27791785,1997.9,1997.8,3.67378]
[1742673714804,1.27791785,1997.9,1997.8,6.83278]
[1742673717718,1.27791785,1997.9,1997.8,10.04058]
[1742673729516,1.27791785,1997.9,1997.8,6.21568]
[1742673729720,1.27791785,1997.9,1997.8,2.34828]
[1742673729913,1.96131785,1997.9,1997.8,2.34828]
[1742673731313,2.96254785,1997.9,1997.8,1.00128]
[1742673732824,2.96254785,1997.9,1997.8,2.37358]
[1742673733216,1.96131785,1997.9,1997.8,2.37358]
[1742673735127,2.96254785,1997.9,1997.8,2.37358]
[1742673738530,1.96131785,1997.9,1997.8,2.37358]
[1742673739031,1.27791785,1997.9,1997.8,2.37358]
[1742673746626,1.0013,1997.8,1997.6,3.8549]
[1742673746828,1.6421,1997.8,1997.7,1.3691]
[1742673747028,0.6408,1997.8,1997.7,2.37038]
[1742673747244,1.64208,1997.8,1997.7,2.37038]
[1742673749931,1.00133,1997.7,1997.6,4.20914]
[1742673750146,1.00142,1997.6,1997.5,1.00142]
[1742673750338,1.00143,1997.5,1997.4,3.05976]
[1742673751345,1.00142,1997.6,1997.5,1.00141]
[1742673751535,1.00142,1997.6,1997.5,2.39801]
[1742673752344,4.15542,1997.6,1997.5,2.39801]
[1742673754642,1.00143,1997.5,1997.4,1.00146]
[1742673754838,1.00148,1997.4,1997.3,2.4031]
[1742673755239,4.15648,1997.4,1997.3,1.4016]
[1742673755443,1.00153,1997.3,1997.2,0.00751785]
[1742673755744,4.20933,1997.3,1997.2,0.00751785]
[1742673757143,1.3383,1997.5,1997.2,3.21531785]
[1742673757342,0.00751785,1997.9,1997.8,1.00128]
[1742673757542,0.6597,1998.2,1998.1,1.00113]
[1742673757747,0.6954,1998.4,1998.3,1.00103]
[1742673758244,0.6954,1998.4,1998.1,3.2078]
[1742673758245,1.69638,1998.4,1998.2,2.36504]
[1742673758637,1.69638,1998.4,1998.3,1.364]
[1742673758840,1.69638,1998.4,1998.3,2.36503]
[1742673758841,0.6954,1998.4,1998.3,2.36503]
[1742673759038,1.69638,1998.4,1998.3,1.364]
[1742673759440,1.69638,1998.4,1998.3,2.36503]
[1742673759641,1.69638,1998.4,1998.3,1.364]
[1742673760348,1.69638,1998.4,1998.3,2.36503]
[1742673760546,1.69638,1998.4,1998.3,1.364]
[1742673760746,1.69638,1998.4,1998.3,2.36503]
[1742673764746,3.08628,1998.4,1998.3,2.36503]
[1742673776156,2.39088,1998.4,1998.3,2.36503]
[1742673776351,2.39088,1998.4,1998.3,3.05343]
[1742673779359,1.3899,1998.4,1998.3,3.05343]
[1742673780260,2.39088,1998.4,1998.3,3.05343]
[1742673780650,1.3899,1998.4,1998.3,3.05343]
[1742673780860,1.3899,1998.4,1998.3,6.26123]
[1742673781160,2.39088,1998.4,1998.3,6.26123]
[1742673781853,0.00751785,1998.5,1998.4,1.00098]
[1742673782062,0.00751785,1998.5,1998.4,2.31288]
[1742673787159,0.00751785,1998.5,1998.4,5.52068]
[1742673791565,0.00751785,1998.5,1998.4,2.31288]
[1742673791862,0.00751785,1998.5,1998.4,5.52068]
[1742673793154,0.00751785,1998.5,1998.4,2.31288]
[1742673793357,0.00751785,1998.5,1998.4,5.52068]
[1742673802161,1.3252,1998.7,1998.6,1.00088]
[1742673802360,1.3252,1998.7,1998.6,4.20868]
[1742673802868,1.66248,1999.0,1998.9,1.00073]
[1742673803069,4.82548,1999.0,1998.9,1.00073]
[1742673804169,6.19658,1999.0,1998.9,2.32133]
[1742673806564,2.0329,1999.0,1998.9,2.32133]
[1742673806762,1.3711,1999.0,1998.9,2.32133]
[1742673806961,1.3711,1999.0,1998.9,3.01823]
[1742673812165,0.00494805,1999.1,1999.0,1.00068]
[1742673812473,2.36587805,1999.1,1999.0,5.49088]
[1742673812868,1.36524805,1999.1,1999.0,5.49088]
[1742673813175,2.36587805,1999.1,1999.0,5.49088]
[1742673814669,1.00557805,1999.1,1999.0,5.49088]
[1742673814869,2.29367805,1999.1,1999.0,5.49088]
[1742673819177,2.29367805,1999.1,1999.0,2.28308]
[1742673819371,2.29367805,1999.1,1999.0,5.49088]
[1742673825182,2.29367805,1999.1,1999.0,4.4902]
[1742673825681,2.29367805,1999.1,1999.0,5.49088]
[1742673826472,2.29367805,1999.1,1999.0,4.4902]
[1742673826673,2.29367805,1999.1,1999.0,5.49088]
[1742673827380,2.5018,1999.0,1998.8,3.2078]
[1742673827579,2.28333,1998.9,1998.8,3.2078]
[1742673827880,1.3151,1998.9,1998.8,5.60418]
[1742673828073,2.31583,1998.9,1998.8,5.60418]
[1742673828689,1.00562805,1999.1,1998.8,4.6034]
[1742673828980,2.38782805,1999.1,1999.0,4.20848]
[1742673829282,2.38782805,1999.1,1999.0,3.2078]
[1742673829581,2.38782805,1999.1,1999.0,4.5447]
[1742673832780,3.05172805,1999.1,1999.0,4.5447]
[1742673833786,3.87985201,1999.1,1999.0,4.5447]
[1742673834387,4.78799159,1999.1,1999.0,4.5447]
[1742673836686,1.00073,1998.9,1998.8,5.57587]
[1742673836987,1.00073,1998.9,1998.8,4.20857]
[1742673837476,2.33063,1998.9,1998.8,3.2078]
[1742673837678,1.00083,1998.7,1998.6,4.5524]
[1742673838580,2.32463,1998.7,1998.6,4.5524]
[1742673842990,2.32463,1998.7,1998.6,3.8695]
[1742673843386,2.32463,1998.7,1998.6,3.2078]
[1742673848195,1.00093,1998.5,1998.4,1.2765]
[1742673848395,1.00093,1998.5,1998.4,4.4843]
[1742673848988,2.32573,1998.5,1998.4,4.4843]
[1742673849192,1.00093,1998.5,1998.4,4.4843]
[1742673849387,1.00093,1998.5,1998.4,5.48524]
[1742673849792,0.6371,1999.0,1998.4,4.4843]
[1742673849991,4.4898,1998.9,1998.7,3.2078]
[1742673850203,0.6371,1999.0,1998.9,1.00071]
[1742673850204,3.165,1999.0,1998.9,1.00071]
[1742673850394,3.165,1999.0,1998.9,4.20851]
[1742673850704,1.00068,1999.0,1998.9,4.20851]
[1742673850896,1.00068,1999.0,1998.9,3.2078]
[1742673852002,2.33268,1999.0,1998.9,3.2078]
[1742673854713,2.33268,1999.0,1998.9,4.5917]
[1742673858715,2.33268,1999.0,1998.9,1.3839]
[1742673861518,5.49468,1999.0,1998.9,1.3839]
[1742673862429,1.00073,1998.9,1998.8,0.6992]
[1742673862618,1.00083,1998.7,1998.6,5.1383]
[1742673862924,1.00083,1998.7,1998.6,4.5274]